Workbook

Sheet Facturier d'Entrées
A1: FACTURIER DES ACHATS | D1: Total facture + ou note crédit - avec TVA % | F1: Trimestre 1. | H1: NET de TVA | L1: BE | O1: Total de contrôle
A2: Date | B2: N° | C2: Fournisseurs | E2: 00 06 21 | F2: Total TVA | G2: Total sans TVA | H2: Marchandises | I2: Frais | J2: Invest. | K2: Privé | L2: TVA non récupérable | M2: TVA récupérable
H3: 81 | I3: 82 | J3: 83 | M3: 59
A4: 2020-06-12 | B4: 1 | C4: Machin | D4: 1000 | E4: 21 | F4: =D4-G4 -> 173.553719 | G4: =IF(E4=21,D4/1.21,IF(E4=6,D4/1.06,D4/1)) -> 826.446281 | H4: 826.45 | L4: =F4-M4 -> 0.003719008264 | M4: 173.55 | O4: =H4+I4+J4+K4+L4+M4 -> 1000.003719
B5: 2 | C5: Chose | D5: 500 | E5: 6 | F5: =D5-G5 -> 28.30188679 | G5: =IF(E5=21,D5/1.21,IF(E5=6,D5/1.06,D5/1)) -> 471.6981132 | J5: 471.7 | L5: =F5-M5 -> 14.15188679 | M5: 14.15 | O5: =H5+I5+J5+K5+L5+M5 -> 500.0018868
B6: 3 | C6: Proximus | D6: 187 | E6: 21 | F6: 32.45454545 | G6: 154.5454545 | I6: 154.55 | L6: 0.004545454545 | M6: 32.45 | O6: 187.0045455
B7: 4 | C7: Brico | D7: 65 | E7: 21 | F7: 11.28099174 | G7: 53.71900826 | K7: 53.72 | L7: 11.28099174 | M7: 0 | O7: 65.00099174
F8: 0 | G8: 0 | L8: 0 | O8: 0
F9: 0 | G9: 0 | L9: 0 | O9: 0
F10: 0 | G10: 0 | L10: 0 | O10: 0
F11: 0 | G11: 0 | L11: 0 | O11: 0
L12: 0 | O12: 0
L13: 0 | O13: 0
L14: 0 | O14: 0
L15: 0 | O15: 0
L16: 0 | O16: 0
L17: 0 | O17: 0
L18: 0 | O18: 0
L19: 0 | O19: 0
L20: 0 | O20: 0
L21: 0 | O21: 0
L22: 0 | O22: 0
L23: 0 | O23: 0
L24: 0 | O24: 0
L25: 0 | O25: 0
L26: 0 | O26: 0
L27: 0 | O27: 0
L28: 0
L29: 0
L30: 0
L31: 0
L32: 0
L33: 0
L34: 0
L35: 0

Sheet Stock
A1: Date | B1: Fournisseur | C1: Marque | D1: type | E1: Taille | F1: Quantité | G1: Prix Achat brut | H1: Mon Prix Achat | I1: Ma remise | J1: taux de marge | K1: taxe recyclage | L1: Marge benef. | M1: P.Vente HT | N1: P.Vente TTC | O1: Quantité Sortie | P1: Date Sortie | Q1: Stock Ce Jour
A2: 2/6/21 | B2: ParisPneus | C2: Michelin | D2: XZX | E2: 245/45/16 | F2: 2 | G2: 100 | H2: 80 | I2: =IF(G2="","",(H2-G2)/G2) -> -0.2 | J2: =IF(H2="","",(M2-H2)/H2) -> 0.5 | K2: =IF(F2="","",F2*2.36) -> 4.72 | L2: =IF(H2="","",M2-H2) -> 40 | M2: 120 | N2: =IF(M2="","",M2*1.21) -> 145.2 | Q2: =IF(F2="","",F2-O2) -> 2
A3: 2/6/21 | B3: ParisPneus | C3: Good Year | D3: Pluie | E3: 235/55/15 | F3: 4 | G3: 65 | H3: 55 | I3: =IF(G3="","",(H3-G3)/G3) -> -0.1538461538 | J3: =IF(H3="","",(M3-H3)/H3) -> 0.7272727273 | K3: =IF(F3="","",F3*2.36) -> 9.44 | L3: =IF(H3="","",M3-H3) -> 40 | M3: 95 | N3: =IF(M3="","",M3*1.21) -> 114.95 | Q3: =IF(F3="","",F3-O3) -> 4
A4: 2/6/21 | B4: Tournesol | C4: Semperit | D4: AKI | E4: 225/45/13 | F4: 4 | G4: 90 | H4: 75 | I4: -0.1666666667 | J4: 0.4 | K4: 9.44 | L4: 30 | M4: 105 | N4: 127.05 | Q4: 4
I67: =IF(G67="","",(H67-G67)/G67) ->  | J67: =IF(H67="","",(M67-H67)/H67) ->  | K67: =IF(F67="","",F67*2.36) ->  | L67: =IF(H67="","",M67-H67) ->  | N67: =IF(M67="","",M67*1.21) ->  | Q67: =IF(F67="","",F67-O67) -> 

Sheet CoordonnéesClients
A1: NumClient | B1: Nom | C1: Prénom | D1: Adresse | E1: Code Postal | F1: Localité | G1: N° TVA | H1: Téléphone | I1: GSM | J1: Email
A2: =LEFT(B2,3)&LEFT(C2,1) -> KOUD | B2: KOUSEN | C2: Daniel | D2: rue Buisson à la fleur, 91 | E2: 4537 | F2: Verlaine | G2: BE0752.303.492 | H2: 04/259.45.55 | I2: 0495/23.05.74 | J2: daniel.kousen@skynet.be
A3: =LEFT(B3,3)&LEFT(C3,1) -> ANCF | B3: ANCION | C3: Freddy
A4: BOVE | B4: BOVEROUL | C4: Eric
A5: BUTR | B5: BUTERA | C5: Raphaël
A6: BUTF | B6: BUTERA | C6: Fréderic
A7: CER | B7: CERTINERGIE
A8: CONP | B8: CONING | C8: Patrick
A9: COOP | B9: COONAERT | C9: Philippe
A10: DAOE | B10: DAOUT | C10: Egide | D10: rue Trixhelette, 81 | E10: 4537 | F10: Verlaine | H10: 04/259,43,84
A11: DEBP | B11: DEBECKER | C11: Philippe
A12: DEBL | B12: DEBLIQUIS | C12: Luc
A13: DELP | B13: DELVAUX | C13: Patrick
A14: det | B14: dethioux
A15: DEVH | B15: DEVIGNE | C15: Henry
A16: D'HE | B16: D'HOE | C16: Eric | E16: 4537 | F16: Verlaine
A17: DUCL | B17: DUCHENE | C17: Laurent
A18: DupC | B18: Dupont | C18: Charles | D18: rue du Pont,28 | F18: Villers le Bouillet | G18: N/A | H18: 04/12345678
A19: EVRR | B19: EVRARD | C19: Roland
A20: FEET | B20: FEET | C20: Thomas
A21: FOUS | B21: FOUCART | C21: Sophie
A22: GIAG | B22: GIANQUINTO | C22: Gloria
A23: GRIB | B23: GRINDORGE | C23: Benoit
A24: HALH | B24: HALIN | C24: Hervé
A25: JOLG | B25: JOLLY | C25: Geoffrey
A26: LABD | B26: LABYE | C26: Didier
A27: LAML | B27: LAMBERTY | C27: Lionel
A28: LAMM | B28: LAMBERTY | C28: Maud
A29: LAMA | B29: LAMOUREUX | C29: Alexandre
A30: LECM | B30: LECOMPTE | C30: Michel
A31: LEFA | B31: LEFEBVRE | C31: Alain
A32: LHEL | B32: LHEUREUX | C32: Lionel
A33: MARG | B33: MARTINE | C33: Georges
A34: MATC | B34: MATYN | C34: Claude
A35: =LEFT(B35,3)&LEFT(C35,1) -> MHVL | B35: MHVAL | C35: Lise
A36: MOIG | B36: MOISSERON | C36: Gérard
A37: MORC | B37: MORSAINT | C37: Claude | D37: fils
A38: MUSC | B38: MUSIQUE | C38: Catherine
A39: NOV | B39: NOVIAT
A40: PAZG | B40: PAZIENZA | C40: Gauthier
A41: REMA | B41: REMONT | C41: Alain
A42: RIGA | B42: RIGA | C42: André
A43: ROSE | B43: ROSE | C43: Eric
A44: saa | B44: sa | C44: arkos
A45: SAIJ | B45: SAINTE | C45: Jean-Christophe
A46: SAID | B46: SAINTE | C46: Dominique
A47: SAML | B47: SAMSON | C47: Luc
A48: SON | B48: SONVILLE
A49: SOUN | B49: SOUDAIN | C49: Nadine
A50: TOUM | B50: TOURNIQUET | C50: Madame
A51: ULIM | B51: ULIANA | C51: Maxime
A52: VAN | B52: VAN DEN BERGH
A53: WALL | B53: WALLRAF | C53: Lionel
A54: WELP | B54: WELKENHUZEN | C54: Patrick
A55: WOLA | B55: WOLWERTZ | C55: Alain
A56: WUYJ | B56: WUYTS | C56: Jean-Luc

Sheet Facture
D5: rue Trixhelette, 13 - 4537 - Verlaine (Bodegnée)
D7: GSM. 0475/83 28 35 | F7: T.V.A.: BE0867.233.448
A10: FACTURE N° | B10: 156 | D10: Nom : | F10: =IF(E10="","",VLOOKUP(E10,CoordonnéesClients!B2:J97,2,FALSE)) -> 
A11: TVA Client : | B11: =IF(VLOOKUP(E10,CoordonnéesClients!B2:G98,6,0)="","N/A",(VLOOKUP(E10,CoordonnéesClients!B2:G98,6,0))) ->  | D11: Adresse : | E11: =IFERROR(VLOOKUP(E10,CoordonnéesClients,3,FALSE),"") -> 
A12: DATE : | B12: =TODAY() -> 2021-06-02 | D12: CP+Localité | E12: =IFERROR(VLOOKUP(E10,CoordonnéesClients,4,FALSE),"") ->  | F12: =IFERROR(VLOOKUP(E10,CoordonnéesClients,5,FALSE),"") -> 
D13: Tél : | E13: =(VLOOKUP(E10,CoordonnéesClients,8,FALSE)) -> 
A15: Nr Article | B15: Qtés | C15: Désignation | F15: Prix Unit. TVAC | G15: Total HTVA
G16: =IF(B16="","",(B16*F16)/1.21) -> 
G17: =IF(B17="","",(B17*F17)/1.21) -> 
C20: Montage & Equilibrage | F20: =IF(B20="","",10) -> 
C21: Taxe recyclage (2,36€/Pneu) | F21: =(B16+B17+B18+B19)*2.36 -> 0 | G21: =IF(F21="","",(F21)/1.21) -> 0
F22: =IF(B22="","",E22*1.21) -> 
I24: ** les quatres premières lignes sont
I25: destinées aux pneus
I26: *** pour autres services que pneus,
I27: débuter à la ligne22
F36: =IF(B36="","",E36*1.21) -> 
G37: =IF(B37="","",B37*E37) -> 
A38: Immatriculation | F38: Total HTVA | G38: =SUM(G16:G37) -> 0
F39: TVA 21% | G39: =G38*21% -> 0
A40: Kilometrage | F40: Total TVAC | G40: =G38+G39 -> 0

Sheet Historique_facture
A1: FACTURE N° | B1: DATE : | C1: Nom : | D1: Prénom : | E1: Adresse : | F1: Code Postal : | G1: Localité: | H1: Tél : | I1: Total HTVA | J1: Total TVAC | K1: facture payée | L1: Date paiement | M1: Solde
A2: 2020/001 | B2: 2020-05-11 | C2: Kousen | D2: Daniel | E2: rue Buisson à la fleur, 91 | F2: 4537 Verlaine | I2: 341 | J2: 412.61 | K2: 412.61 | L2: 2020-05-11 | M2: =IF(I2=0,"",IF(J2-K2=0,"Payé",J2-K2)) -> Payé | O2: =IF(I2=0,"",IF(J2-K2=0,"",J2-K2)) -> 
A3: 2020/001 | B3: 2020-05-11 | C3: Kousen | D3: Daniel | E3: rue Buisson à la fleur, 91 | F3: 4537 Verlaine | I3: 341 | J3: 412.61 | M3: =IF(I3=0,"",IF(J3-K3=0,"Payé",J3-K3)) -> 412.61
A4: 2020/001 | B4: 2020-05-11 | I4: 0 | J4: 0
A5: 2020/001 | B5: 2020-05-11 | I5: 0 | J5: 0
A6: 2020/001 | B6: 2020-05-11 | I6: 0 | J6: 0
A7: 2020/001 | B7: 2020-05-11 | I7: 0 | J7: 0
A8: 2020/001 | B8: 2020-05-11 | I8: 0 | J8: 0
A9: 2020/001 | B9: 2020-05-11 | I9: 0 | J9: 0
A10: 101 | B10: 2020-05-11 | I10: 0 | J10: 0
A11: 102 | B11: 2020-05-11 | I11: 0 | J11: 0
A12: 103 | B12: 2020-05-11 | I12: 0 | J12: 0
A13: 104 | B13: 2020-05-11 | I13: 0 | J13: 0
A14: 105 | B14: 2020-05-11 | I14: 0 | J14: 0
A15: 106 | B15: 2020-05-11 | I15: 0 | J15: 0
A16: 107 | B16: 2020-05-11 | C16: Kousen | D16: Daniel | E16: rue Buisson à la fleur, 91 | F16: 4537 - Verlaine | I16: 453.8 | J16: 549.1 | K16: 549.1 | M16: Payé
A17: 108 | B17: 2020-05-11 | C17: Kousen | E17: rue Buisson à la fleur, 91 | F17: 4537 | G17: Verlaine | H17: 0495/23,05,74 | I17: 0 | J17: 0
A18: 109 | B18: 2020-05-11 | C18: Kousen | I18: 326.5 | J18: 395.07 | M18: 395.07
A19: 110 | B19: 2020-05-11 | C19: Kousen | E19: rue Buisson à la fleur, 91 | F19: 4537 | G19: Verlaine | H19: 0495/23,05,74 | I19: 755.28 | J19: 913.89 | M19: 913.89
A20: 111 | B20: 2020-05-11 | C20: Kousen | E20: rue Buisson à la fleur, 91 | F20: 4537 | G20: Verlaine | H20: 0495/23,05,74 | I20: 2192.55 | J20: 2652.99 | M20: 2652.99
A21: 112 | B21: 2020-05-12 | C21: Kousen | E21: rue Buisson à la fleur, 91 | F21: 4537 | G21: Verlaine | H21: 0495/23.05.74 | I21: 179.98 | J21: 217.78 | M21: 217.78
A22: 113 | B22: 2020-05-12 | C22: BUTERA | E22: 0 | F22: 0 | G22: 0 | H22: 0 | I22: 418.24 | J22: 506.07 | M22: 506.07
A23: 114 | B23: 2020-05-12 | I23: 0 | J23: 0
A24: 115 | B24: 2020-05-12 | C24: Dupont | E24: rue du Pont,28 | F24: 0 | G24: Villers le Bouillet | H24: 0 | I24: 359.6 | J24: 435.12 | K24: 435.12 | M24: Payé
A25: 116 | B25: 2020-05-12 | C25: KOUSEN | E25: rue Buisson à la fleur, 91 | F25: 4537 | G25: Verlaine | H25: 0495/23.05.74 | I25: 132.96 | J25: 160.88 | M25: 160.88
A26: 117 | B26: 2020-05-12 | C26: KOUSEN | E26: rue Buisson à la fleur, 91 | F26: 4537 | G26: Verlaine | H26: 0495/23.05.74 | I26: 0 | J26: 0
A27: 118 | B27: 2020-05-23 | I27: 0 | J27: 0
A28: 126 | B28: 2020-06-01 | I28: 0 | J28: 0
A29: 127 | B29: 2020-06-01 | C29: KOUSEN | E29: rue Buisson à la fleur, 91 | F29: 4537 | G29: Verlaine | H29: 0495/23.05.74 | I29: 748.8 | J29: 906.05 | M29: 906.05
A30: 129 | B30: 2020-06-01 | I30: 0 | J30: 0
A31: 131 | B31: 2020-06-01 | C31: Dupont | E31: rue du Pont,28 | F31: 0 | G31: Villers le Bouillet | H31: 0 | I31: 448.4 | J31: 542.56 | M31: 542.56
A32: 132 | B32: 2020-06-01 | I32: 0 | J32: 0
A33: 134 | B33: 2020-06-11 | C33: KOUSEN | E33: rue Buisson à la fleur, 91 | F33: 4537 | G33: Verlaine | H33: 0495/23.05.74 | I33: 266.4 | J33: 322.34 | M33: 322.34
A34: 135 | B34: 2020-06-11 | C34: KOUSEN | E34: rue Buisson à la fleur, 91 | F34: 4537 | G34: Verlaine | H34: 0495/23.05.74 | I34: 609.6 | J34: 737.62 | M34: 737.62
A35: 136 | B35: 2020-06-11 | C35: Dupont | E35: rue du Pont,28 | F35: 0 | G35: Villers le Bouillet | H35: 0 | I35: 748.8 | J35: 906.05 | M35: 906.05
A36: 137 | B36: 2020-06-11 | C36: Dupont | E36: rue du Pont,28 | F36: 0 | G36: Villers le Bouillet | H36: 0 | I36: 1382 | J36: 1672.22 | M36: 1672.22
A37: 138 | B37: 2020-06-11 | C37: Dupont | E37: rue du Pont,28 | F37: 0 | G37: Villers le Bouillet | H37: 0 | I37: 778.8 | J37: 942.35 | M37: 942.35
A38: 139 | B38: 2020-06-11 | I38: 0 | J38: 0
A39: 140 | B39: 2020-06-11 | C39: KOUSEN | D39: Daniel | E39: rue Buisson à la fleur, 91 | F39: 4537 | G39: Verlaine | H39: 0495/23.05.74 | I39: 282 | J39: 341.22 | M39: 341.22
A40: 141 | B40: 2020-06-11 | I40: 1238 | J40: 1497.98 | M40: 1497.98
A41: 142 | B41: 2020-06-11 | C41: ULIANA | D41: Maxime | E41: 0 | F41: 0 | G41: 0 | H41: 0 | I41: 2766 | J41: 3346.86 | M41: 3346.86
A42: 143 | B42: 2020-06-29 | C42: KOUSEN | D42: Daniel | E42: rue Buisson à la fleur, 91 | F42: 4537 | G42: Verlaine | H42: 0495/23.05.74 | I42: 157.83 | J42: 190.98 | K42: 150 | M42: 40.98
A43: 144 | B43: 2020-06-29 | I43: 0 | J43: 0
A44: 145 | B44: 2020-06-29 | C44: DAOUT | D44: Egide | E44: rue Trixhelette, 81 | F44: 4537 | G44: Verlaine | H44: 0 | I44: 377.06 | J44: 456.24 | K44: 456.24 | M44: Payé
A45: 146 | B45: 2020-07-10 | C45: TOURNIQUET | D45: Madame | E45: 0 | F45: 0 | G45: 0 | H45: 0 | I45: 154.3 | J45: 186.7 | M45: 186.7
A46: 147 | B46: 2020-07-10 | C46: KOUSEN | D46: Daniel | E46: rue Buisson à la fleur, 91 | F46: 4537 | G46: Verlaine | H46: 0495/23.05.74 | I46: 154.3 | J46: 186.7 | M46: 186.7
A47: 148 | B47: 2020-07-10 | I47: 16.53 | J47: 20 | M47: 20
A48: 149 | B48: 2020-07-10 | I48: 0 | J48: 0
A49: 150 | B49: 2020-07-10 | C49: WELKENHUZEN | D49: Patrick | E49: 0 | F49: 0 | G49: 0 | H49: 0 | I49: 460.03 | J49: 556.64 | M49: 556.64
A50: 151 | B50: 2020-07-18 | C50: TOURNIQUET | D50: Madame | E50: 0 | F50: 0 | G50: 0 | H50: 0 | I50: 185.69 | J50: 224.68 | M50: 224.68
A51: 152 | B51: 2020-07-18 | C51: WALLRAF | D51: Lionel | E51: 0 | F51: 0 | G51: 0 | H51: 0 | I51: 305.32 | J51: 369.44 | M51: 369.44
A52: 153 | B52: 2020-07-21 | C52: KOUSEN | D52: Daniel | E52: rue Buisson à la fleur, 91 | F52: 4537 | G52: Verlaine | H52: 0495/23.05.74 | I52: 437.55 | J52: 529.44 | M52: 529.44
A53: 154 | B53: 2020-08-02 | C53: KOUSEN | D53: Daniel | E53: rue Buisson à la fleur, 91 | F53: 4537 | G53: Verlaine | H53: 0495/23.05.74 | I53: 268.93 | J53: 325.4 | M53: 325.4
A54: 155 | B54: 2020-08-14 | C54: Dupont | D54: Charles | E54: rue du Pont,28 | F54: 0 | G54: Villers le Bouillet | H54: 0 | I54: 172.5 | J54: 208.72 | M54: 208.72
M64: =IF(I64=0,"",IF(J64-K64=0,"Payé",J64-K64)) -> 
I98: =SUM(I2:I97) -> 17459.75 | J98: =SUM(J2:J97) -> 21126.31 | K98: total du crédit : | M98: =SUM(M2:M97) -> 19123.24
I101: TVA à Payer : | K101: =J98-I98 -> 3666.56

Sheet Historique_Client
A1: FACTURE N° | B1: DATE : | C1: Nom : | D1: Prénom : | E1: Adresse : | F1: Code Postal : | G1: Localité: | H1: Tél : | I1: Total HTVA | J1: Total TVAC | K1: facture payée | L1: Date paiement | M1: Solde
A2: 113 | B2: 2020-05-12 | C2: BUTERA | E2: 0 | F2: 0 | G2: 0 | H2: 0 | I2: 418.24 | J2: 506.07 | M2: =IF(I2=0,"",IF(J2-K2=0,"Payé",J2-K2)) -> 506.07 | O2: =IF(I2=0,"",IF(J2-K2=0,"",J2-K2)) -> 506.07
A3: 2020/001 | B3: 2020-05-11 | C3: Kousen | D3: Daniel | E3: rue Buisson à la fleur, 91 | F3: 4537 Verlaine | I3: 341 | J3: 412.61 | K3: 412.61 | L3: 2020-05-11 | M3: Payé
A4: 2020/001 | B4: 2020-05-11 | C4: Kousen | D4: Daniel | E4: rue Buisson à la fleur, 91 | F4: 4537 Verlaine | I4: 341 | J4: 412.61 | M4: 412.61
A5: 107 | B5: 2020-05-11 | C5: Kousen | D5: Daniel | E5: rue Buisson à la fleur, 91 | F5: 4537 - Verlaine | I5: 453.8 | J5: 549.1 | K5: 549.1 | M5: Payé
A6: 108 | B6: 2020-05-11 | C6: Kousen | E6: rue Buisson à la fleur, 91 | F6: 4537 | G6: Verlaine | H6: 0495/23,05,74 | I6: 0 | J6: 0
A7: 109 | B7: 2020-05-11 | C7: Kousen | I7: 326.5 | J7: 395.07 | M7: 395.07
A8: 110 | B8: 2020-05-11 | C8: Kousen | E8: rue Buisson à la fleur, 91 | F8: 4537 | G8: Verlaine | H8: 0495/23,05,74 | I8: 755.28 | J8: 913.89 | M8: 913.89
A9: 111 | B9: 2020-05-11 | C9: Kousen | E9: rue Buisson à la fleur, 91 | F9: 4537 | G9: Verlaine | H9: 0495/23,05,74 | I9: 2192.55 | J9: 2652.99 | M9: 2652.99
A10: 112 | B10: 2020-05-12 | C10: Kousen | E10: rue Buisson à la fleur, 91 | F10: 4537 | G10: Verlaine | H10: 0495/23.05.74 | I10: 179.98 | J10: 217.78 | M10: 217.78
A11: 2020/001 | B11: 2020-05-11 | I11: 0 | J11: 0
A12: 2020/001 | B12: 2020-05-11 | I12: 0 | J12: 0
A13: 2020/001 | B13: 2020-05-11 | I13: 0 | J13: 0
A14: 2020/001 | B14: 2020-05-11 | I14: 0 | J14: 0
A15: 2020/001 | B15: 2020-05-11 | I15: 0 | J15: 0
A16: 2020/001 | B16: 2020-05-11 | I16: 0 | J16: 0
A17: 2020/001 | B17: 2020-05-11 | I17: 0 | J17: 0
A18: 2020/001 | B18: 2020-05-11 | I18: 0 | J18: 0
A19: 100 | B19: 2020-05-11 | I19: 0 | J19: 0
A20: 101 | B20: 2020-05-11 | I20: 0 | J20: 0
A21: 102 | B21: 2020-05-11 | I21: 0 | J21: 0
A22: 103 | B22: 2020-05-11 | I22: 0 | J22: 0
A23: 104 | B23: 2020-05-11 | I23: 0 | J23: 0
A24: 105 | B24: 2020-05-11 | I24: 0 | J24: 0
A25: 106 | B25: 2020-05-11 | I25: 0 | J25: 0
M26: =IF(I26=0,"",IF(J26-K26=0,"Payé",J26-K26)) -> 
M67: =IF(I67=0,"",IF(J67-K67=0,"Payé",J67-K67)) -> 
K101: total du crédit : | M101: =SUM(M2:M100) -> 5098.41

Sheet Types pneus
A2: Calcul du type de pneus | B2: ='Types pneus'!B8&" " -> 94 | C2: largeurs | D2: hauteur | E2: type | F2: diamètre | G2: charge | H2: vitesse | K2: Marques
C3: 125 | D3: 25 | E3: R | F3: 10 | G3: 60 | H3: B | K3: Accelera Pneus
A4: largeur | B4: 295 | C4: 135 | D4: 30 | E4: ZR | F4: 11 | G4: 61 | H4: C | K4: Achilles Pneus
A5: Hauteur | B5: 35 | C5: 145 | D5: 35 | E5: RF | F5: 12 | G5: 62 | H5: D | K5: Advance Pneus
A6: Type | B6: R | C6: 155 | D6: 40 | E6: D | F6: 13 | G6: 63 | H6: E | K6: Aeolus Pneus
A7: Diamètre | B7: 21 | C7: 165 | D7: 45 | F7: 14 | G7: 64 | H7: F | K7: Alliance Pneus
A8: Charge | B8: 94 | C8: 175 | D8: 50 | F8: 15 | G8: 65 | H8: G | K8: Altura Pneus
A9: Vitesse | B9: W | C9: 185 | D9: 55 | F9: 16 | G9: 66 | H9: H | K9: Antares Pneus
C10: 195 | D10: 60 | F10: 17 | G10: 67 | H10: J | K10: Anteo Pneus
C11: 205 | D11: 65 | F11: 18 | G11: 68 | H11: K | K11: APlus Pneus
A12: =CONCATENATE(B4,"/",B5," ",B6," ",B7) -> 295/35 R 21 | C12: 215 | D12: 70 | F12: 19 | G12: 69 | H12: L | K12: Apollo Pneus
C13: 225 | D13: 75 | F13: 20 | G13: 70 | H13: M | K13: Arivo Pneus
C14: 235 | D14: 80 | F14: 21 | G14: 71 | H14: N | K14: Armour Pneus
C15: 245 | G15: 72 | H15: P | K15: Atlas Pneus
C16: 255 | G16: 73 | H16: Q | K16: ATP Pneus
C17: 265 | G17: 74 | H17: R | K17: Atturo Pneus
C18: 275 | G18: 75 | H18: S | K18: Avon Pneus
C19: 285 | G19: 76 | H19: T | K19: Avon Vintage Pneus
C20: 295 | G20: 77 | H20: U | K20: Barum Pneus
C21: 305 | G21: 78 | H21: V | K21: Berliner Heissrunderneuerung Pneus
C22: 315 | G22: 79 | H22: VR | K22: BF Goodrich Pneus
G23: 80 | H23: W | K23: BKT Pneus
G24: 81 | H24: Y | K24: Blacklion Pneus
G25: 82 | H25: ZR | K25: Boka Pneus
G26: 83 | K26: Bridgestone Pneus
G27: 84 | K27: Camac Pneus
G28: 85 | K28: Carlisle Pneus
G29: 86 | K29: Ceat Pneus
G30: 87 | K30: Coker Pneus
G31: 88 | K31: Comforser Pneus
G32: 89 | K32: Continental Pneus
G33: 90 | K33: Contire Pneus
G34: 91 | K34: Cooper Pneus
G35: 92 | K35: Cordiant Pneus
G36: 93 | K36: CST Pneus
G37: 94 | K37: Cultor Pneus
G38: 95 | K38: Dayton Pneus
G39: 96 | K39: Debica Pneus
G40: 97 | K40: Deestone Pneus
G41: 98 | K41: Deli Pneus
G42: 99 | K42: Dneproshina Pneus
G43: 100 | K43: Double Coin Pneus
G44: 101 | K44: Dunlop Pneus
G45: 102 | K45: Duraturn Pneus
G46: 103 | K46: Duro Pneus
G47: 104 | K47: Ecomega Pneus
G48: 105 | K48: Euro-Grip Pneus
G49: 106 | K49: Evergreen Pneus
G50: 107 | K50: Excelsior Pneus
G51: 108 | K51: Falken Pneus
G52: 109 | K52: Farm King Pneus
G53: 110 | K53: Federal Pneus
G54: 111 | K54: Fesite Pneus
G55: 112 | K55: Firemax Pneus
G56: 113 | K56: Firestone Pneus
G57: 114 | K57: Formula Pneus
G58: 115 | K58: Fortuna Pneus
G59: 116 | K59: Fulda Pneus
G60: 117 | K60: Fullrun Pneus
G61: 118 | K61: Galaxy Pneus
G62: 119 | K62: General Pneus
G63: 120 | K63: Gislaved Pneus
G64: 121 | K64: Giti Pneus
G65: 122 | K65: Goform Pneus
G66: 123 | K66: Goodride Pneus
G67: 124 | K67: Goodyear Pneus
G68: 125 | K68: Gripmax Pneus
K69: GT Radial Pneus
K70: Haida Pneus
K71: Hankook Pneus
K72: Headway Pneus
K73: Heidenau Pneus
K74: HI FLY Pneus
K75: Imperial Pneus
K76: Import Pneus
K77: Infinity Pneus
K78: Insa Turbo Pneus
K79: Jinyu Pneus
K80: Kabat Pneus
K81: Kaltrunderneuerung Pneus
K82: Kama Pneus
K83: Kelly Pneus
K84: Kenda Pneus
K85: Keter Pneus
K86: Kinforest Pneus
K87: King Meiler Pneus
K88: Kings Tire Pneus
K89: Kleber Pneus
K90: Kormoran Pneus
K91: KRM Pneus
K92: Kumho Pneus
K93: Landsail Pneus
K94: Lanvigator Pneus
K95: Lassa Pneus
K96: Laufenn Pneus
K97: Lexani Pneus
K98: Linglong Pneus
K99: Magna Pneus
K100: Malatesta Pneus
K101: Malhotra MRL Pneus
K102: Marshal Pneus
K103: Matador Pneus
K104: Maxfield Pneus
K105: Maximo Pneus
K106: Maxtrek Pneus
K107: Maxxis Pneus
K108: Mazzini Pneus
K109: Michelin Collection Pneus
K110: Michelin Pneus
K111: Michelin Remix Pneus
K112: Milestone Pneus
K113: Minerva Pneus
K114: Mitas Pneus
K115: Nankang Pneus
K116: Nexen Pneus
K117: Nitto Pneus
K118: Nokian Pneus
K119: Nordexx Pneus
K120: Nortenha Pneus
K121: Novio Pneus
K122: Orium Pneus
K123: Ovation Pneus
K124: Ozka Pneus
K125: Petlas Pneus
K126: Pirelli Pneus
K127: PointS Pneus
K128: PowerTrac Pneus
K129: Powertrac Pneus
K130: Premiorri Pneus
K131: Profil Pneus
K132: Radar Pneus
K133: Retro Pneus
K134: Riken Pneus
K135: Roadmarch Pneus
K136: Roadstone Pneus
K137: RoadX Pneus
K138: Roadx Pneus
K139: Rosava Pneus
K140: Rotalla Pneus
K141: Royal Pneus
K142: Sailun Pneus
K143: Samson Pneus
K144: Sava Pneus
K145: Security Pneus
K146: Seha Pneus
K147: Seiberling Pneus
K148: Semi-Pro Pneus
K149: Semperit Pneus
K150: Shikari Pneus
K151: Silverstone Pneus
K152: Solideal Pneus
K153: Speedways Pneus
K154: Star Performer Pneus
K155: Star Pneus
K156: Starco Pneus
K157: Starmaxx Pneus
K158: Sunny Pneus
K159: Super King Pneus
K160: Superia Pneus
K161: Syron Pneus
K162: Taifa Pneus
K163: Taurus Pneus
K164: Techking Pneus
K165: THREE-A Pneus
K166: Tianli Pneus
K167: Titan Pneus
K168: Tomket Pneus
K169: Torque Pneus
K170: Toyo Pneus
K171: Tracmax Pneus
K172: Trayal Pneus
K173: Trazano Pneus
K174: Trelleborg Pneus
K175: Triangle Pneus
K176: Tristar Pneus
K177: Unigrip Pneus
K178: Uniroyal Pneus
K179: VeeRubber Pneus
K180: Veloce Pneus
K181: Viking Pneus
K182: Vitour Pneus
K183: Voltyre Pneus
K184: Vredestein Pneus
K185: Wanda Pneus
K186: Wanli Pneus
K187: Waymaster Pneus
K188: Westlake Pneus
K189: Windforce Pneus
K190: WindPower Pneus
K191: Winrun Pneus
K192: Winter Tact Pneus
K193: Yokohama Pneus
K194: Ziarelli Pneus

Sheet bilan annuel
A1: bilan entrée et sortie
A3: recette entrer | B3: =#REF! ->  | C3: recette sortie | D3: =#REF! -> 
B5: benefice | C5: =D3-B3 -> 
